[Event "Titled Tuesday Blitz December 7 2021"]
[White "Golubka, Petro"]
[Black "Andreikin, Dmitry"]
[WhiteFideId "14114224"]
[BlackFideId "4158814"]
[WhiteElo "2392"]
[BlackElo "2736"]
[Result "0-1"]
[Round "04"]
[TimeControl "180+1"]
[Date "2021.12.07"]
[WhiteClock "0:01:32"]
[BlackClock "0:00:07"]

1. e4 {[%clk 0:02:55]}  e5 {[%clk 0:02:59]} 2. Nf3 {[%clk 0:02:53]}  Nc6 {[%clk 0:03:00]} 3. Bb5 {[%clk 0:02:53]}  Nf6 {[%clk 0:03:00]} 4. O-O {[%clk 0:02:52]}  Nxe4 {[%clk 0:03:00]} 5. d4 {[%clk 0:02:52]}  Nd6 {[%clk 0:02:59]} 6. Bxc6 {[%clk 0:02:53]}  dxc6 {[%clk 0:02:59]} 7. dxe5 {[%clk 0:02:53]}  Nf5 {[%clk 0:03:00]} 8. Qxd8+ {[%clk 0:02:54]}  Kxd8 {[%clk 0:03:01]} 9. Nc3 {[%clk 0:02:54]}  Bd7 {[%clk 0:03:00]} 10. b3 {[%clk 0:02:54]}  h6 {[%clk 0:02:59]} 11. Bb2 {[%clk 0:02:55]}  Kc8 {[%clk 0:02:59]} 12. Rad1 {[%clk 0:02:54]}  a5 {[%clk 0:02:54]} 13. a4 {[%clk 0:02:54]}  b6 {[%clk 0:02:52]} 14. h3 {[%clk 0:02:53]}  Bb4 {[%clk 0:02:47]} 15. Ne2 {[%clk 0:02:51]}  Re8 {[%clk 0:02:34]} 16. Nf4 {[%clk 0:02:46]}  Bf8 {[%clk 0:02:32]} 17. g4 {[%clk 0:02:45]}  Ne7 {[%clk 0:02:31]} 18. Rfe1 {[%clk 0:02:42]}  Ng6 {[%clk 0:01:59]} 19. Nh5 {[%clk 0:02:33]}  c5 {[%clk 0:01:49]} 20. Nd2 {[%clk 0:02:25]}  Nh4 {[%clk 0:01:33]} 21. Kh2 {[%clk 0:02:21]}  c4 {[%clk 0:01:20]} 22. Kg3 {[%clk 0:02:19]}  cxb3 {[%clk 0:01:19]} 23. Kxh4 {[%clk 0:02:18]}  bxc2 {[%clk 0:01:18]} 24. Rc1 {[%clk 0:02:18]}  Bxa4 {[%clk 0:01:17]} 25. Ne4 {[%clk 0:02:14]}  Rd8 {[%clk 0:01:00]} 26. Re2 {[%clk 0:02:05]}  Rd3 {[%clk 0:00:54]} 27. e6 {[%clk 0:01:57]}  g5+ {[%clk 0:00:38]} 28. Nxg5 {[%clk 0:01:57]}  hxg5+ {[%clk 0:00:38]} 29. Kxg5 {[%clk 0:01:57]}  fxe6 {[%clk 0:00:34]} 30. Rxe6 {[%clk 0:01:57]}  Kb7 {[%clk 0:00:30]} 31. Nf4 {[%clk 0:01:57]}  Rd1 {[%clk 0:00:25]} 32. h4 {[%clk 0:01:56]}  Bg7 {[%clk 0:00:22]} 33. Rxc2 {[%clk 0:01:52]}  Rg8 {[%clk 0:00:18]} 34. Rg6 {[%clk 0:01:48]}  Bxc2 {[%clk 0:00:13]} 35. Rxg7 {[%clk 0:01:48]}  Rxg7+ {[%clk 0:00:13]} 36. Bxg7 {[%clk 0:01:48]}  a4 {[%clk 0:00:13]} 37. h5 {[%clk 0:01:49]}  a3 {[%clk 0:00:13]} 38. h6 {[%clk 0:01:49]}  b5 {[%clk 0:00:13]} 39. Ne6 {[%clk 0:01:46]}  b4 {[%clk 0:00:11]} 40. f4 {[%clk 0:01:46]}  Bh7 {[%clk 0:00:08]} 41. Nf8 {[%clk 0:01:44]}  b3 {[%clk 0:00:07]} 42. Nxh7 {[%clk 0:01:43]}  b2 {[%clk 0:00:07]} 43. Nf6 {[%clk 0:01:43]}  b1=Q {[%clk 0:00:07]} 44. h7 {[%clk 0:01:44]}  Rd8 {[%clk 0:00:06]} 45. h8=Q {[%clk 0:01:41]}  Rxh8 {[%clk 0:00:06]} 46. Bxh8 {[%clk 0:01:42]}  a2 {[%clk 0:00:06]} 47. Nh5 {[%clk 0:01:42]}  c5 {[%clk 0:00:05]} 48. f5 {[%clk 0:01:41]}  c4 {[%clk 0:00:05]} 49. Nf4 {[%clk 0:01:41]}  Qc1 {[%clk 0:00:03]} 50. Be5 {[%clk 0:01:36]}  c3 {[%clk 0:00:03]} 51. f6 {[%clk 0:01:36]}  a1=Q {[%clk 0:00:03]} 52. f7 {[%clk 0:01:37]}  Qa8 {[%clk 0:00:04]} 53. Kf6 {[%clk 0:01:37]}  Qd8+ {[%clk 0:00:03]} 54. Ke6 {[%clk 0:01:37]}  Qc2 {[%clk 0:00:03]} 55. g5 {[%clk 0:01:37]}  Qb3+ {[%clk 0:00:04]} 56. Kf5 {[%clk 0:01:37]}  Qxf7+ {[%clk 0:00:05]} 57. Ke4 {[%clk 0:01:36]}  c2 {[%clk 0:00:05]} 58. g6 {[%clk 0:01:33]}  Qc4+ {[%clk 0:00:06]} 59. Kf5 {[%clk 0:01:32]}  c1=Q {[%clk 0:00:07]} 0-1


[Site "https://www.chess.com"]

[Event "Titled Tuesday Blitz December 7 2021"]
[White "Gunduz, Umut Erdem"]
[Black "Holtel, Jasper"]
[WhiteFideId "6381383"]
[BlackFideId "12956376"]
[WhiteElo "2096"]
[BlackElo "2380"]
[Result "1-0"]
[Round "04"]
[TimeControl "180+1"]
[Date "2021.12.07"]
[WhiteClock "0:00:04"]
[BlackClock "0:00:02"]

1. e4 {[%clk 0:03:00]}  e5 {[%clk 0:02:59]} 2. Nf3 {[%clk 0:03:00]}  Nf6 {[%clk 0:02:59]} 3. Nxe5 {[%clk 0:03:01]}  d6 {[%clk 0:02:59]} 4. Nf3 {[%clk 0:03:01]}  Nxe4 {[%clk 0:02:59]} 5. Nc3 {[%clk 0:03:02]}  Nxc3 {[%clk 0:02:59]} 6. dxc3 {[%clk 0:03:03]}  Be7 {[%clk 0:02:59]} 7. Bf4 {[%clk 0:03:01]}  Be6 {[%clk 0:02:58]} 8. Bd3 {[%clk 0:03:00]}  Nc6 {[%clk 0:02:57]} 9. Qd2 {[%clk 0:03:00]}  Qd7 {[%clk 0:02:53]} 10. Ng5 {[%clk 0:02:54]}  Bxg5 {[%clk 0:02:35]} 11. Bxg5 {[%clk 0:02:55]}  f6 {[%clk 0:02:34]} 12. Be3 {[%clk 0:02:52]}  a6 {[%clk 0:02:27]} 13. f3 {[%clk 0:02:28]}  Ne5 {[%clk 0:02:23]} 14. Be2 {[%clk 0:02:11]}  Nc4 {[%clk 0:02:06]} 15. Bxc4 {[%clk 0:01:58]}  Bxc4 {[%clk 0:02:06]} 16. O-O-O {[%clk 0:01:58]}  O-O-O {[%clk 0:01:42]} 17. Qd4 {[%clk 0:01:57]}  Qb5 {[%clk 0:01:40]} 18. Qg4+ {[%clk 0:01:49]}  Rd7 {[%clk 0:01:18]} 19. b3 {[%clk 0:01:28]}  Bg8 {[%clk 0:00:44]} 20. Kb2 {[%clk 0:01:18]}  f5 {[%clk 0:00:41]} 21. Qg5 {[%clk 0:01:10]}  h6 {[%clk 0:00:36]} 22. Qh4 {[%clk 0:00:59]}  Bf7 {[%clk 0:00:24]} 23. Qd4 {[%clk 0:00:55]}  Re8 {[%clk 0:00:17]} 24. Qa7 {[%clk 0:00:54]}  Rde7 {[%clk 0:00:17]} 25. a4 {[%clk 0:00:20]}  Qc6 {[%clk 0:00:16]} 26. Bd4 {[%clk 0:00:18]}  g6 {[%clk 0:00:10]} 27. Rd2 {[%clk 0:00:18]}  Re2 {[%clk 0:00:10]} 28. Rhd1 {[%clk 0:00:17]}  Kd7 {[%clk 0:00:09]} 29. c4 {[%clk 0:00:15]}  Rxd2 {[%clk 0:00:07]} 30. Rxd2 {[%clk 0:00:16]}  g5 {[%clk 0:00:04]} 31. a5 {[%clk 0:00:12]}  h5 {[%clk 0:00:04]} 32. Bf6 {[%clk 0:00:10]}  g4 {[%clk 0:00:04]} 33. fxg4 {[%clk 0:00:09]}  hxg4 {[%clk 0:00:05]} 34. Qd4 {[%clk 0:00:10]}  Qe4 {[%clk 0:00:04]} 35. Qf2 {[%clk 0:00:07]}  Qe3 {[%clk 0:00:03]} 36. Qxf5+ {[%clk 0:00:05]}  Be6 {[%clk 0:00:02]} 37. Qh7+ {[%clk 0:00:05]}  Kc6 {[%clk 0:00:02]} 38. Rd3 {[%clk 0:00:04]} 1-0


[Site "https://www.chess.com"]

[Event "Titled Tuesday Blitz December 7 2021"]
[White "Dronavalli, Harika"]
[Black "Przybylski, Wojciech"]
[WhiteFideId "5015197"]
[BlackFideId "1117599"]
[WhiteElo "2382"]
[BlackElo "2247"]
[Result "1-0"]
[Round "04"]
[TimeControl "180+1"]
[Date "2021.12.07"]
[WhiteClock "0:01:13"]
[BlackClock "0:00:01"]

1. d4 {[%clk 0:02:57]}  d5 {[%clk 0:02:59]} 2. Bf4 {[%clk 0:02:57]}  Nf6 {[%clk 0:02:59]} 3. Nf3 {[%clk 0:02:57]}  c6 {[%clk 0:02:59]} 4. e3 {[%clk 0:02:56]}  Bg4 {[%clk 0:02:56]} 5. Nbd2 {[%clk 0:02:55]}  Nbd7 {[%clk 0:02:55]} 6. h3 {[%clk 0:02:55]}  Bh5 {[%clk 0:02:55]} 7. Be2 {[%clk 0:02:50]}  e6 {[%clk 0:02:55]} 8. O-O {[%clk 0:02:50]}  Be7 {[%clk 0:02:55]} 9. c4 {[%clk 0:02:50]}  O-O {[%clk 0:02:55]} 10. Rc1 {[%clk 0:02:45]}  a5 {[%clk 0:02:42]} 11. Bd3 {[%clk 0:02:42]}  Bg6 {[%clk 0:02:36]} 12. Bxg6 {[%clk 0:02:41]}  hxg6 {[%clk 0:02:35]} 13. Qe2 {[%clk 0:02:38]}  a4 {[%clk 0:02:24]} 14. Rfd1 {[%clk 0:02:37]}  Qb6 {[%clk 0:02:17]} 15. Rc2 {[%clk 0:02:36]}  dxc4 {[%clk 0:02:03]} 16. Nxc4 {[%clk 0:02:36]}  Qa6 {[%clk 0:02:03]} 17. Bd6 {[%clk 0:02:20]}  Rfe8 {[%clk 0:01:51]} 18. Bxe7 {[%clk 0:02:09]}  Rxe7 {[%clk 0:01:52]} 19. e4 {[%clk 0:02:08]}  Nb6 {[%clk 0:01:41]} 20. Nfe5 {[%clk 0:01:58]}  Nxc4 {[%clk 0:01:35]} 21. Nxc4 {[%clk 0:01:57]}  Rd8 {[%clk 0:01:26]} 22. Kf1 {[%clk 0:01:44]}  Red7 {[%clk 0:01:22]} 23. Rcd2 {[%clk 0:01:42]}  c5 {[%clk 0:01:11]} 24. dxc5 {[%clk 0:01:35]}  Rxd2 {[%clk 0:00:36]} 25. Rxd2 {[%clk 0:01:35]}  Rxd2 {[%clk 0:00:27]} 26. Nxd2 {[%clk 0:01:35]}  Qc6 {[%clk 0:00:16]} 27. Qc4 {[%clk 0:01:28]}  Nd7 {[%clk 0:00:13]} 28. b4 {[%clk 0:01:24]}  axb3 {[%clk 0:00:13]} 29. Nxb3 {[%clk 0:01:24]}  b6 {[%clk 0:00:11]} 30. Kg1 {[%clk 0:01:14]}  Nxc5 {[%clk 0:00:09]} 31. Nxc5 {[%clk 0:01:14]}  bxc5 {[%clk 0:00:10]} 32. a4 {[%clk 0:01:14]}  Qb6 {[%clk 0:00:01]} 33. Qb5 {[%clk 0:01:13]} 1-0


[Site "https://www.chess.com"]

[Event "Titled Tuesday Blitz December 7 2021"]
[White "Harshavardhan G B"]
[Black "Manafov, Vugar"]
[WhiteFideId "25059009"]
[BlackFideId "13410814"]
[WhiteElo "1825"]
[BlackElo "2277"]
[Result "0-1"]
[Round "04"]
[TimeControl "180+1"]
[Date "2021.12.07"]
[WhiteClock "0:00:01"]
[BlackClock "0:00:12"]

1. c4 {[%clk 0:03:00]}  Nf6 {[%clk 0:03:00]} 2. Nc3 {[%clk 0:02:58]}  e6 {[%clk 0:03:00]} 3. e4 {[%clk 0:02:57]}  d5 {[%clk 0:03:00]} 4. cxd5 {[%clk 0:02:55]}  exd5 {[%clk 0:03:01]} 5. e5 {[%clk 0:02:56]}  d4 {[%clk 0:03:01]} 6. exf6 {[%clk 0:02:55]}  dxc3 {[%clk 0:03:02]} 7. Bb5+ {[%clk 0:02:51]}  c6 {[%clk 0:02:58]} 8. Qe2+ {[%clk 0:02:50]}  Be6 {[%clk 0:02:58]} 9. Bc4 {[%clk 0:02:47]}  Qxf6 {[%clk 0:02:57]} 10. dxc3 {[%clk 0:02:44]}  Be7 {[%clk 0:02:52]} 11. Bxe6 {[%clk 0:02:42]}  Qxe6 {[%clk 0:02:53]} 12. Qxe6 {[%clk 0:02:41]}  fxe6 {[%clk 0:02:53]} 13. Nf3 {[%clk 0:02:40]}  Bf6 {[%clk 0:02:48]} 14. Bf4 {[%clk 0:02:36]}  Nd7 {[%clk 0:02:44]} 15. O-O-O {[%clk 0:02:32]}  Nb6 {[%clk 0:02:37]} 16. Rhe1 {[%clk 0:02:28]}  Kf7 {[%clk 0:02:33]} 17. Ng5+ {[%clk 0:02:19]}  Bxg5 {[%clk 0:02:32]} 18. Bxg5 {[%clk 0:02:19]}  h6 {[%clk 0:02:31]} 19. Be3 {[%clk 0:02:04]}  Nd5 {[%clk 0:02:30]} 20. Bd4 {[%clk 0:01:51]}  Rhd8 {[%clk 0:02:29]} 21. c4 {[%clk 0:01:50]}  Nf6 {[%clk 0:02:25]} 22. f3 {[%clk 0:01:47]}  Ne8 {[%clk 0:01:54]} 23. Be5 {[%clk 0:01:39]}  Ke7 {[%clk 0:01:48]} 24. Kc2 {[%clk 0:01:28]}  Rxd1 {[%clk 0:01:45]} 25. Rxd1 {[%clk 0:01:25]}  Rd8 {[%clk 0:01:46]} 26. Re1 {[%clk 0:01:16]}  Nd6 {[%clk 0:01:17]} 27. b3 {[%clk 0:00:56]}  Nf5 {[%clk 0:01:17]} 28. Kc3 {[%clk 0:00:51]}  g5 {[%clk 0:01:11]} 29. g3 {[%clk 0:00:41]}  h5 {[%clk 0:01:05]} 30. a3 {[%clk 0:00:35]}  g4 {[%clk 0:00:56]} 31. Bf4 {[%clk 0:00:19]}  Rg8 {[%clk 0:00:41]} 32. Rf1 {[%clk 0:00:17]}  h4 {[%clk 0:00:38]} 33. gxh4 {[%clk 0:00:14]}  Nxh4 {[%clk 0:00:39]} 34. fxg4 {[%clk 0:00:13]}  Rxg4 {[%clk 0:00:39]} 35. Bb8 {[%clk 0:00:12]}  a6 {[%clk 0:00:38]} 36. Kb4 {[%clk 0:00:12]}  Rg5 {[%clk 0:00:30]} 37. Bf4 {[%clk 0:00:10]}  Rf5 {[%clk 0:00:30]} 38. Rf2 {[%clk 0:00:08]}  a5+ {[%clk 0:00:24]} 39. Kc3 {[%clk 0:00:08]}  Ng6 {[%clk 0:00:21]} 40. Bg3 {[%clk 0:00:08]}  Rh5 {[%clk 0:00:21]} 41. b4 {[%clk 0:00:06]}  axb4+ {[%clk 0:00:21]} 42. axb4 {[%clk 0:00:06]}  e5 {[%clk 0:00:22]} 43. Ra2 {[%clk 0:00:05]}  Ke6 {[%clk 0:00:22]} 44. Ra7 {[%clk 0:00:05]}  Rh7 {[%clk 0:00:23]} 45. Kd3 {[%clk 0:00:05]}  Rd7+ {[%clk 0:00:23]} 46. Ke3 {[%clk 0:00:05]}  Ne7 {[%clk 0:00:23]} 47. Ke2 {[%clk 0:00:05]}  Nf5 {[%clk 0:00:23]} 48. Bf2 {[%clk 0:00:06]}  e4 {[%clk 0:00:23]} 49. b5 {[%clk 0:00:05]}  cxb5 {[%clk 0:00:24]} 50. cxb5 {[%clk 0:00:05]}  Ke5 {[%clk 0:00:25]} 51. h4 {[%clk 0:00:05]}  Kf4 {[%clk 0:00:24]} 52. b6 {[%clk 0:00:05]}  Re7 {[%clk 0:00:22]} 53. Ra4 {[%clk 0:00:04]}  Rg7 {[%clk 0:00:19]} 54. Kf1 {[%clk 0:00:03]}  Kf3 {[%clk 0:00:19]} 55. Ra5 {[%clk 0:00:03]}  Rf7 {[%clk 0:00:16]} 56. h5 {[%clk 0:00:01]}  e3 {[%clk 0:00:16]} 57. Be1 {[%clk 0:00:02]}  Nd4 {[%clk 0:00:15]} 58. Kg1 {[%clk 0:00:02]}  Ne2+ {[%clk 0:00:15]} 59. Kh2 {[%clk 0:00:02]}  Rg7 {[%clk 0:00:13]} 60. Bh4 {[%clk 0:00:03]}  Rg2+ {[%clk 0:00:13]} 61. Kh1 {[%clk 0:00:03]}  Rg4 {[%clk 0:00:13]} 62. Be7 {[%clk 0:00:01]}  Ng3+ {[%clk 0:00:13]} 63. Kh2 {[%clk 0:00:01]}  Nf1+ {[%clk 0:00:13]} 64. Kh3 {[%clk 0:00:02]}  Rg3+ {[%clk 0:00:13]} 65. Kh4 {[%clk 0:00:02]}  e2 {[%clk 0:00:14]} 66. Re5 {[%clk 0:00:01]}  Ne3 {[%clk 0:00:12]} 0-1


[Site "https://www.chess.com"]

[Event "Titled Tuesday Blitz December 7 2021"]
[White "Ivanchuk, Vasyl"]
[Black "Xiong, Jeffery"]
[WhiteFideId "14100010"]
[BlackFideId "2047640"]
[WhiteElo "2710"]
[BlackElo "2727"]
[Result "0-1"]
[Round "04"]
[TimeControl "180+1"]
[Date "2021.12.07"]
[WhiteClock "0:00:01"]
[BlackClock "0:01:00"]

1. d4 {[%clk 0:03:00]}  Nf6 {[%clk 0:03:00]} 2. Nf3 {[%clk 0:03:00]}  d5 {[%clk 0:03:00]} 3. c4 {[%clk 0:03:00]}  e6 {[%clk 0:03:01]} 4. Nc3 {[%clk 0:02:59]}  dxc4 {[%clk 0:02:58]} 5. e3 {[%clk 0:02:59]}  a6 {[%clk 0:02:57]} 6. a4 {[%clk 0:02:58]}  c5 {[%clk 0:02:57]} 7. Bxc4 {[%clk 0:02:58]}  Nc6 {[%clk 0:02:51]} 8. O-O {[%clk 0:02:58]}  Be7 {[%clk 0:02:52]} 9. dxc5 {[%clk 0:02:58]}  Qxd1 {[%clk 0:02:53]} 10. Rxd1 {[%clk 0:02:58]}  Bxc5 {[%clk 0:02:54]} 11. Bd3 {[%clk 0:02:54]}  O-O {[%clk 0:02:52]} 12. Ne4 {[%clk 0:02:47]}  Be7 {[%clk 0:02:52]} 13. b3 {[%clk 0:02:39]}  Rd8 {[%clk 0:02:51]} 14. Nxf6+ {[%clk 0:02:10]}  Bxf6 {[%clk 0:02:52]} 15. Rb1 {[%clk 0:02:10]}  Nb4 {[%clk 0:02:42]} 16. Be2 {[%clk 0:02:08]}  Rxd1+ {[%clk 0:02:43]} 17. Bxd1 {[%clk 0:02:08]}  Bd7 {[%clk 0:02:42]} 18. Bd2 {[%clk 0:02:07]}  Na2 {[%clk 0:02:33]} 19. Nd4 {[%clk 0:01:56]}  Rc8 {[%clk 0:02:33]} 20. Bf3 {[%clk 0:01:56]}  Bxd4 {[%clk 0:02:28]} 21. exd4 {[%clk 0:01:55]}  Bc6 {[%clk 0:02:29]} 22. Rb2 {[%clk 0:01:24]}  Bxf3 {[%clk 0:02:28]} 23. Rxa2 {[%clk 0:01:24]}  Bd1 {[%clk 0:02:12]} 24. Rb2 {[%clk 0:01:24]}  Rc2 {[%clk 0:02:12]} 25. Rxc2 {[%clk 0:01:24]}  Bxc2 {[%clk 0:02:13]} 26. a5 {[%clk 0:01:21]}  Bxb3 {[%clk 0:02:13]} 27. Bb4 {[%clk 0:01:17]}  f6 {[%clk 0:02:12]} 28. f3 {[%clk 0:01:13]}  Kf7 {[%clk 0:02:12]} 29. Kf2 {[%clk 0:01:13]}  g5 {[%clk 0:02:09]} 30. Bc5 {[%clk 0:01:03]}  h5 {[%clk 0:02:08]} 31. Bb6 {[%clk 0:01:01]}  Bd5 {[%clk 0:02:07]} 32. Ke3 {[%clk 0:00:57]}  Ke8 {[%clk 0:02:02]} 33. Kf2 {[%clk 0:00:56]}  Kd7 {[%clk 0:02:02]} 34. Ke3 {[%clk 0:00:56]}  f5 {[%clk 0:02:02]} 35. g3 {[%clk 0:00:54]}  Kc6 {[%clk 0:02:00]} 36. f4 {[%clk 0:00:48]}  g4 {[%clk 0:01:55]} 37. Kd2 {[%clk 0:00:46]}  Bc4 {[%clk 0:01:55]} 38. Ke3 {[%clk 0:00:39]}  Kd5 {[%clk 0:01:55]} 39. Bc5 {[%clk 0:00:33]}  Bb5 {[%clk 0:01:56]} 40. Bb6 {[%clk 0:00:33]}  Bc6 {[%clk 0:01:57]} 41. Bc5 {[%clk 0:00:33]}  b5 {[%clk 0:01:18]} 42. axb6 {[%clk 0:00:33]}  Kc4 {[%clk 0:01:19]} 43. Kd2 {[%clk 0:00:24]}  a5 {[%clk 0:01:12]} 44. Kc2 {[%clk 0:00:21]}  Be4+ {[%clk 0:01:12]} 45. Kb2 {[%clk 0:00:17]}  Kd3 {[%clk 0:01:12]} 46. Kb3 {[%clk 0:00:14]}  Ke2 {[%clk 0:01:13]} 47. Ka4 {[%clk 0:00:12]}  Kf3 {[%clk 0:01:13]} 48. Kxa5 {[%clk 0:00:11]}  Kg2 {[%clk 0:01:13]} 49. Ka6 {[%clk 0:00:11]}  Kxh2 {[%clk 0:01:13]} 50. b7 {[%clk 0:00:10]}  Bxb7+ {[%clk 0:01:13]} 51. Kxb7 {[%clk 0:00:10]}  Kxg3 {[%clk 0:01:11]} 52. Kc6 {[%clk 0:00:05]}  h4 {[%clk 0:01:11]} 53. Kd6 {[%clk 0:00:05]}  h3 {[%clk 0:01:12]} 54. Kxe6 {[%clk 0:00:05]}  h2 {[%clk 0:01:12]} 55. d5 {[%clk 0:00:05]}  h1=Q {[%clk 0:01:13]} 56. d6 {[%clk 0:00:05]}  Qe4+ {[%clk 0:01:09]} 57. Kf6 {[%clk 0:00:04]}  Kxf4 {[%clk 0:01:05]} 58. Ba3 {[%clk 0:00:01]}  Qd5 {[%clk 0:01:00]} 0-1


[Site "https://www.chess.com"]

[Event "Titled Tuesday Blitz December 7 2021"]
[White "Kamsky, Gata"]
[Black "Mirzoev, Azer"]
[WhiteFideId "2000024"]
[BlackFideId "13400304"]
[WhiteElo "2645"]
[BlackElo "2525"]
[Result "1/2-1/2"]
[Round "04"]
[TimeControl "180+1"]
[Date "2021.12.07"]
[WhiteClock "0:00:20"]
[BlackClock "0:00:25"]

1. d4 {[%clk 0:03:00]}  d5 {[%clk 0:03:00]} 2. Bf4 {[%clk 0:02:59]}  Nf6 {[%clk 0:03:00]} 3. e3 {[%clk 0:02:59]}  Bf5 {[%clk 0:02:58]} 4. c4 {[%clk 0:02:58]}  c6 {[%clk 0:02:57]} 5. Nc3 {[%clk 0:02:51]}  e6 {[%clk 0:02:55]} 6. Qb3 {[%clk 0:02:50]}  Qc8 {[%clk 0:02:52]} 7. Rc1 {[%clk 0:02:46]}  a6 {[%clk 0:02:40]} 8. Nf3 {[%clk 0:02:37]}  Nbd7 {[%clk 0:02:39]} 9. Be2 {[%clk 0:02:23]}  Be7 {[%clk 0:02:39]} 10. O-O {[%clk 0:02:21]}  O-O {[%clk 0:02:39]} 11. cxd5 {[%clk 0:02:18]}  exd5 {[%clk 0:02:38]} 12. h3 {[%clk 0:02:19]}  h6 {[%clk 0:02:35]} 13. Ne1 {[%clk 0:02:08]}  Be6 {[%clk 0:02:27]} 14. Qd1 {[%clk 0:02:00]}  Ne4 {[%clk 0:02:17]} 15. Nd3 {[%clk 0:01:58]}  Nxc3 {[%clk 0:02:15]} 16. Rxc3 {[%clk 0:01:56]}  Nf6 {[%clk 0:02:09]} 17. b4 {[%clk 0:01:53]}  Bf5 {[%clk 0:02:03]} 18. Qb3 {[%clk 0:01:37]}  Ne4 {[%clk 0:01:59]} 19. Rc2 {[%clk 0:01:36]}  Nd6 {[%clk 0:01:53]} 20. a4 {[%clk 0:01:32]}  Nc4 {[%clk 0:01:50]} 21. a5 {[%clk 0:01:32]}  Re8 {[%clk 0:01:36]} 22. Rd1 {[%clk 0:01:30]}  Bg5 {[%clk 0:01:32]} 23. Bg3 {[%clk 0:01:08]}  Bxe3 {[%clk 0:01:07]} 24. fxe3 {[%clk 0:01:06]}  Nxe3 {[%clk 0:01:08]} 25. Bf2 {[%clk 0:00:34]}  Nxc2 {[%clk 0:00:57]} 26. Qxc2 {[%clk 0:00:34]}  Qe6 {[%clk 0:00:56]} 27. Bf1 {[%clk 0:00:28]}  Qg6 {[%clk 0:00:53]} 28. Qc3 {[%clk 0:00:27]}  Bxh3 {[%clk 0:00:37]} 29. Nf4 {[%clk 0:00:25]}  Qg4 {[%clk 0:00:37]} 30. Rd3 {[%clk 0:00:22]}  Qxf4 {[%clk 0:00:36]} 31. Rxh3 {[%clk 0:00:23]}  Re4 {[%clk 0:00:31]} 32. Rf3 {[%clk 0:00:22]}  Qg5 {[%clk 0:00:27]} 33. Bd3 {[%clk 0:00:21]}  Rg4 {[%clk 0:00:26]} 34. g3 {[%clk 0:00:21]}  Re8 {[%clk 0:00:25]} 35. Bf5 {[%clk 0:00:20]} 1/2-1/2


[Site "https://www.chess.com"]

[Event "Titled Tuesday Blitz December 7 2021"]
[White "Kislinsky, Alexey"]
[Black "Jobava, Baadur"]
[WhiteFideId "14108801"]
[BlackFideId "13601520"]
[WhiteElo "2335"]
[BlackElo "2689"]
[Result "0-1"]
[Round "04"]
[TimeControl "180+1"]
[Date "2021.12.07"]
[WhiteClock "0:00:45"]
[BlackClock "0:00:57"]

1. e4 {[%clk 0:03:00]}  e6 {[%clk 0:02:56]} 2. d4 {[%clk 0:02:44]}  d5 {[%clk 0:02:57]} 3. Nd2 {[%clk 0:02:43]}  dxe4 {[%clk 0:02:57]} 4. Nxe4 {[%clk 0:02:41]}  Bd7 {[%clk 0:02:58]} 5. Nf3 {[%clk 0:02:41]}  Bc6 {[%clk 0:02:58]} 6. Neg5 {[%clk 0:02:42]}  Nd7 {[%clk 0:02:36]} 7. Bc4 {[%clk 0:02:35]}  Qe7 {[%clk 0:02:31]} 8. Qe2 {[%clk 0:02:14]}  O-O-O {[%clk 0:02:25]} 9. c3 {[%clk 0:02:02]}  Ngf6 {[%clk 0:02:23]} 10. h4 {[%clk 0:01:57]}  h6 {[%clk 0:02:15]} 11. Nh3 {[%clk 0:01:57]}  e5 {[%clk 0:01:59]} 12. dxe5 {[%clk 0:01:54]}  Bxf3 {[%clk 0:01:58]} 13. gxf3 {[%clk 0:01:35]}  Nxe5 {[%clk 0:01:56]} 14. Be3 {[%clk 0:01:35]}  Nxc4 {[%clk 0:01:53]} 15. Qxc4 {[%clk 0:01:33]}  Nd5 {[%clk 0:01:51]} 16. O-O-O {[%clk 0:01:30]}  Nxe3 {[%clk 0:01:49]} 17. Rxd8+ {[%clk 0:01:28]}  Kxd8 {[%clk 0:01:46]} 18. Qd4+ {[%clk 0:01:22]}  Nd5 {[%clk 0:01:33]} 19. Qxd5+ {[%clk 0:01:18]}  Kc8 {[%clk 0:01:34]} 20. Rd1 {[%clk 0:01:15]}  Qe8 {[%clk 0:01:09]} 21. Qf5+ {[%clk 0:01:03]}  Qe6 {[%clk 0:01:02]} 22. Qxe6+ {[%clk 0:00:59]}  fxe6 {[%clk 0:01:02]} 23. Nf4 {[%clk 0:00:59]}  Be7 {[%clk 0:01:02]} 24. Ng6 {[%clk 0:00:55]}  Re8 {[%clk 0:01:02]} 25. Nxe7+ {[%clk 0:00:49]}  Rxe7 {[%clk 0:01:02]} 26. Rg1 {[%clk 0:00:49]}  Rf7 {[%clk 0:00:57]} 27. Rxg7 {[%clk 0:00:45]}  Rxg7 {[%clk 0:00:57]} 0-1


[Site "https://www.chess.com"]

[Event "Titled Tuesday Blitz December 7 2021"]
[White "Kosteniuk, Alexandra"]
[Black "Vusatiuk, Vladimir"]
[WhiteFideId "4128125"]
[BlackFideId "14118610"]
[WhiteElo "2475"]
[BlackElo "2157"]
[Result "1-0"]
[Round "04"]
[TimeControl "180+1"]
[Date "2021.12.07"]
[WhiteClock "0:00:26"]
[BlackClock "0:00:03"]

1. e4 {[%clk 0:03:00]}  c5 {[%clk 0:02:59]} 2. c3 {[%clk 0:03:01]}  Nf6 {[%clk 0:02:59]} 3. e5 {[%clk 0:03:01]}  Nd5 {[%clk 0:02:59]} 4. d4 {[%clk 0:03:02]}  cxd4 {[%clk 0:03:00]} 5. Nf3 {[%clk 0:03:02]}  Nc6 {[%clk 0:03:00]} 6. cxd4 {[%clk 0:03:03]}  g6 {[%clk 0:02:52]} 7. Bc4 {[%clk 0:03:02]}  Nb6 {[%clk 0:02:52]} 8. Bb3 {[%clk 0:03:01]}  Bg7 {[%clk 0:02:51]} 9. Nc3 {[%clk 0:02:59]}  O-O {[%clk 0:02:50]} 10. Bf4 {[%clk 0:02:52]}  d6 {[%clk 0:02:49]} 11. h3 {[%clk 0:02:46]}  Bf5 {[%clk 0:02:17]} 12. O-O {[%clk 0:02:42]}  Na5 {[%clk 0:02:16]} 13. Bc2 {[%clk 0:02:36]}  Bxc2 {[%clk 0:02:16]} 14. Qxc2 {[%clk 0:02:36]}  Rc8 {[%clk 0:02:13]} 15. Rad1 {[%clk 0:02:29]}  dxe5 {[%clk 0:01:43]} 16. dxe5 {[%clk 0:02:29]}  Qc7 {[%clk 0:01:44]} 17. Qc1 {[%clk 0:02:25]}  e6 {[%clk 0:01:41]} 18. Rfe1 {[%clk 0:02:19]}  a6 {[%clk 0:01:29]} 19. Bh6 {[%clk 0:02:16]}  Rfd8 {[%clk 0:01:22]} 20. Bxg7 {[%clk 0:02:02]}  Kxg7 {[%clk 0:01:23]} 21. h4 {[%clk 0:01:55]}  Nd5 {[%clk 0:01:11]} 22. h5 {[%clk 0:01:47]}  Qe7 {[%clk 0:00:50]} 23. h6+ {[%clk 0:01:46]}  Kg8 {[%clk 0:00:51]} 24. Ng5 {[%clk 0:01:41]}  Nxc3 {[%clk 0:00:46]} 25. bxc3 {[%clk 0:01:41]}  Nc4 {[%clk 0:00:40]} 26. Qf4 {[%clk 0:01:40]}  Nb6 {[%clk 0:00:33]} 27. Rxd8+ {[%clk 0:01:28]}  Rxd8 {[%clk 0:00:33]} 28. c4 {[%clk 0:01:28]}  Nxc4 {[%clk 0:00:28]} 29. Nxf7 {[%clk 0:01:15]}  Qxf7 {[%clk 0:00:14]} 30. Qxc4 {[%clk 0:01:15]}  b5 {[%clk 0:00:10]} 31. Qc6 {[%clk 0:01:13]}  Rf8 {[%clk 0:00:08]} 32. Re2 {[%clk 0:01:08]}  Qf5 {[%clk 0:00:05]} 33. g3 {[%clk 0:01:03]}  Qb1+ {[%clk 0:00:04]} 34. Kg2 {[%clk 0:01:04]}  Qf5 {[%clk 0:00:04]} 35. f4 {[%clk 0:00:37]}  Kh8 {[%clk 0:00:04]} 36. Rd2 {[%clk 0:00:35]}  Qh5 {[%clk 0:00:03]} 37. Qxe6 {[%clk 0:00:33]}  Qxh6 {[%clk 0:00:03]} 38. Qe7 {[%clk 0:00:29]}  Qg7 {[%clk 0:00:01]} 39. Qxg7+ {[%clk 0:00:26]}  Kxg7 {[%clk 0:00:02]} 40. Rd7+ {[%clk 0:00:27]}  Rf7 {[%clk 0:00:03]} 41. e6 {[%clk 0:00:26]} 1-0


[Site "https://www.chess.com"]